[Event "47th GER-ch Blitz 2020"]
[Site "Magdeburg"]
[Date "2020.08.15"]
[Round "3.15"]
[White "Reichmann, Hendrik"]
[Black "Svane, Frederik"]
[Result "0-1"]
[ECO "A45"]
[WhiteElo "2348"]
[BlackElo "2421"]
[Annotator "ChessBase"]
[PlyCount "26"]
[EventDate "2020.07.28"]
[EventType "tourn"]
[EventCountry "GER"]
[SourceTitle "playchess.com"]
[Source "ChessBase"]
[SourceQuality "1"]
[TimeControl "180+2"]

1. d4 {[%emt 0:00:00]} Nf6 {[%emt 0:00:00]} 2. Bf4 {[%emt 0:00:02]} b6 {[%emt 0:00:00]} 3. e3 {[%emt 0:00:01]} Bb7 {[%emt 0:00:00]} 4. Nf3 {[%emt 0:00:01]} Nh5 {[%emt 0:00:01]} 5. Bg5 {[%emt 0:00:01]} h6 {[%emt 0:00:01]} 6. Bh4 {[%emt 0:00:01]} g5 {[%emt 0:00:01]} 7. Nfd2 {[%emt 0:00:01]} Nf4 {[%emt 0:00:00]} 8. exf4 {[%emt 0:00:04]} gxh4 {[%emt 0:00:02]} 9. Qh5 {[%emt 0:00:36]} e6 {[%emt 0:00:01]} 10. Nf3 {[%emt 0:00:23]} Qf6 {[%emt 0:00:01]} 11. Qxh4 {[%emt 0:00:32]} Qxh4 {[%emt 0:00:01]} 12. Nxh4 {[%emt 0:00:01]} Rg8 {[%emt 0:00:00]} 13. Rg1 {[%emt 0:00:09]} Be7 {[%emt 0:00:05]} 0-1

[Event "47th GER-ch Blitz 2020"]
[Site "Magdeburg"]
[Date "2020.08.15"]
[Round "4.4"]
[White "Hess, Max"]
[Black "Koch, Thomas"]
[Result "0-1"]
[ECO "B53"]
[WhiteElo "2378"]
[BlackElo "2461"]
[Annotator "RC"]
[PlyCount "58"]
[EventDate "2020.07.28"]
[EventType "tourn"]
[EventCountry "GER"]
[SourceTitle "playchess.com"]
[Source "ChessBase"]
[SourceQuality "1"]
[TimeControl "180+2"]

1. e4 {[%emt 0:00:00]} c5 {[%emt 0:00:00]} 2. Nf3 {[%emt 0:00:02]} d6 {[%emt 0:00:01]} 3. d4 {[%emt 0:00:01]} cxd4 {[%emt 0:00:01]} 4. Qxd4 {[%emt 0:00:01]} a6 {[%emt 0:00:01]} 5. h3 {[%emt 0:00:02]} Nc6 {[%emt 0:00:01]} 6. Qe3 {[%emt 0:00:01]} g6 {[%emt 0:00:04]} 7. c4 {[%emt 0:00:02]} Bg7 {[%emt 0:00:01]} 8. Nc3 {[%emt 0:00:02]} Nf6 {[%emt 0:00:02]} 9. Be2 {[%emt 0:00:02]} O-O {[%emt 0:00:05]} 10. O-O {[%emt 0:00:01]} Nd7 {[%emt 0:00:03]} 11. b3 {[%emt 0:00:12]} Nde5 {[%emt 0:00:06]} 12. Nd2 {[%emt 0:00:15]} Nb4 {[%emt 0:00:14]} 13. Rb1 {[%emt 0:00:34]} Nc2 {[%emt 0:00:07]} 14. Qg3 {[%emt 0:00:03]} Nd4 {[%emt 0:00:08]} 15. Bd1 {[%emt 0:00:04]} e6 {[%emt 0:00:10]} 16. Bb2 {[%emt 0:00:24]} b5 {[%emt 0:00:10]} 17. f4 {[%emt 0:00:39]} Nec6 {[%emt 0:00:04]} 18. Kh1 {[%emt 0:00:11]} f5 {[%emt 0:00:14]} 19. Ne2 {[%emt 0:00:10]} Nxe2 {[%emt 0:00:18]} 20. Bxe2 {[%emt 0:00:01]} Nd4 {[%emt 0:00:09]} 21. Bd3 {[%emt 0:00:05]} Bb7 {[%emt 0:00:06]} 22. Rfe1 {[%emt 0:00:09]} Qa5 {[%emt 0:00:07]} 23. Qe3 {[%emt 0:00:10]} e5 {[%emt 0:00:09]} 24. fxe5 {[%emt 0:00:10]} dxe5 {[%emt 0:00:01]} 25. exf5 {[%emt 0:00:01]} gxf5 {[%emt 0:00:07]} 26. Bxd4 {[%emt 0:00:09]} exd4 {[%emt 0:00:01]} 27. Qe6+ {[%emt 0:00:02]} Kh8 {[%emt 0:00:03]} 28. Re2 {[%emt 0:00:06]} Qc3 {[%emt 0:00:18]} 29. Bxf5 {[%emt 0:00:08]} Bc8 {[%emt 0:00:08]} 0-1

[Event "47th GER-ch Blitz 2020"]
[Site "Magdeburg"]
[Date "2020.08.15"]
[Round "8.9"]
[White "Braeuning, Rudolf Wilhelm"]
[Black "Dobrikov, Marco"]
[Result "1/2-1/2"]
[ECO "B22"]
[WhiteElo "2244"]
[BlackElo "2290"]
[Annotator "RC"]
[PlyCount "198"]
[EventDate "2020.07.28"]
[EventType "tourn"]
[EventCountry "GER"]
[SourceTitle "playchess.com"]
[Source "ChessBase"]
[SourceQuality "1"]
[TimeControl "180+2"]

1. e4 {[%emt 0:00:00]} c5 {[%emt 0:00:00]} 2. c3 {[%emt 0:00:01]} Nf6 {[%emt 0:00:01]} 3. e5 Nd5 4. d4 {[%emt 0:00:01]} cxd4 {[%emt 0:00:01]} 5. Nf3 {[%emt 0:00:02]} Nc6 {[%emt 0:00:01]} 6. Bc4 {[%emt 0:00:01]} Nb6 {[%emt 0:00:00]} 7. Bb3 {[%emt 0:00:02]} d5 {[%emt 0:00:01]} 8. exd6 {[%emt 0:00:01]} Qxd6 {[%emt 0:00:01]} 9. O-O {[%emt 0:00:02]} g6 {[%emt 0:00:06]} 10. Ng5 {[%emt 0:00:23]} e6 {[%emt 0:00:05]} 11. Na3 {[%emt 0:00:17]} a6 {[%emt 0:00:04]} 12. Qf3 {[%emt 0:00:10]} Qe7 {[%emt 0:00:14]} 13. Ne4 {[%emt 0:00:08]} Bg7 {[%emt 0:00:37]} 14. Bg5 {[%emt 0:00:06]} Qc7 {[%emt 0:00:19]} 15. Nf6+ {[%emt 0:00:28]} Kf8 {[%emt 0:00:02]} 16. Bf4 {[%emt 0:00:43]} Qe7 {[%emt 0:00:13]} 17. Ne4 {[%emt 0:00:03]} e5 {[%emt 0:00:55]} 18. Bg5 {[%emt 0:00:02]} Qd7 {[%emt 0:00:01]} 19. Nd6 {[%emt 0:00:21]} f5 {[%emt 0:00:01]} 20. Nf7 {[%emt 0:00:24]} Na5 {[%emt 0:00:25]} 21. Nxh8 {[%emt 0:00:03]} Nxb3 {[%emt 0:00:02]} 22. axb3 {[%emt 0:00:01]} Bxh8 {[%emt 0:00:01]} 23. cxd4 {[%emt 0:00:01]} e4 {[%emt 0:00:05]} 24. Qg3 {[%emt 0:00:04]} Nd5 {[%emt 0:00:04]} 25. Rac1 {[%emt 0:00:09]} b5 {[%emt 0:00:02]} 26. Bf4 {[%emt 0:00:04]} Bb7 {[%emt 0:00:01]} 27. Be5 {[%emt 0:00:01]} Kf7 {[%emt 0:00:04]} 28. Qh4 {[%emt 0:00:01]} Bxe5 {[%emt 0:00:06]} 29. dxe5 {[%emt 0:00:01]} Kg7 {[%emt 0:00:01]} 30. Rfd1 {[%emt 0:00:04]} Re8 {[%emt 0:00:05]} 31. Nc2 {[%emt 0:00:04]} Rxe5 {[%emt 0:00:02]} 32. Nd4 {[%emt 0:00:00]} Qe7 {[%emt 0:00:05]} 33. Qxe7+ {[%emt 0:00:02]} Rxe7 {[%emt 0:00:01]} 34. Rc5 {[%emt 0:00:01]} Nb4 {[%emt 0:00:04]} 35. Ne2 {[%emt 0:00:07]} Nd3 {[%emt 0:00:01]} 36. Rc3 {[%emt 0:00:03]} b4 {[%emt 0:00:08]} 37. Rc2 {[%emt 0:00:03]} Bd5 {[%emt 0:00:02]} 38. Nd4 {[%emt 0:00:00]} Bf7 {[%emt 0:00:01]} 39. f3 {[%emt 0:00:02]} Rd7 {[%emt 0:00:01]} 40. Ne2 {[%emt 0:00:02]} Bxb3 {[%emt 0:00:02]} 41. Rdc1 {[%emt 0:00:01]} Bxc2 {[%emt 0:00:01]} 42. Rxc2 {[%emt 0:00:01]} exf3 {[%emt 0:00:02]} 43. gxf3 {[%emt 0:00:00]} Ne1 {[%emt 0:00:01]} 44. Rc6 {[%emt 0:00:04]} Nxf3+ {[%emt 0:00:02]} 45. Kf2 {[%emt 0:00:01]} Nxh2 {[%emt 0:00:01]} 46. Rxa6 {[%emt 0:00:00]} Ng4+ {[%emt 0:00:01]} 47. Kf3 {[%emt 0:00:01]} Rd3+ {[%emt 0:00:01]} 48. Kf4 {[%emt 0:00:02]} Kh6 {[%emt 0:00:06]} 49. Ng3 {[%emt 0:00:09]} Kg7 {[%emt 0:00:11]} 50. Ra7+ {[%emt 0:00:01]} Kg8 {[%emt 0:00:01]} 51. Ra8+ {[%emt 0:00:00]} Kf7 {[%emt 0:00:02]} 52. Ra7+ {[%emt 0:00:01]} Kf6 {[%emt 0:00:02]} 53. Ra6+ {[%emt 0:00:02]} Ke7 {[%emt 0:00:01]} 54. Ne2 {[%emt 0:00:11]} Rd2 {[%emt 0:00:01]} 55. Ng3 {[%emt 0:00:02]} Rxb2 {[%emt 0:00:01]} 56. Kg5 {[%emt 0:00:04]} Rd2 {[%emt 0:00:02]} 57. Kf4 {[%emt 0:00:02]} b3 {[%emt 0:00:02]} 58. Rb6 {[%emt 0:00:01]} Rd3 {[%emt 0:00:01]} 59. Ne2 {[%emt 0:00:02]} Nf6 {[%emt 0:00:03]} 60. Rb7+ {[%emt 0:00:01]} Nd7 {[%emt 0:00:02]} 61. Nc1 {[%emt 0:00:01]} Rd4+ {[%emt 0:00:01]} 62. Ke3 {[%emt 0:00:01]} Re4+ {[%emt 0:00:01]} 63. Kd3 {[%emt 0:00:01]} Kd6 {[%emt 0:00:01]} 64. Nxb3 {[%emt 0:00:01]} h5 {[%emt 0:00:03]} 65. Ra7 {[%emt 0:00:03]} Ke6 {[%emt 0:00:06]} 66. Nd4+ {[%emt 0:00:01]} Ke7 {[%emt 0:00:03]} 67. Nc6+ Ke8 68. Nd4 {[%emt 0:00:05]} Ne5+ {[%emt 0:00:02]} 69. Kc3 {[%emt 0:00:01]} Re3+ {[%emt 0:00:01]} 70. Kb4 {[%emt 0:00:02]} h4 {[%emt 0:00:02]} 71. Kc5 {[%emt 0:00:01]} Nd7+ {[%emt 0:00:01]} 72. Kd6 {[%emt 0:00:04]} Re4 {[%emt 0:00:04]} 73. Ne6 {[%emt 0:00:02]} Rxe6+ {[%emt 0:00:09]} 74. Kxe6 Nc5+ {[%emt 0:00:01]} 75. Kf6 {[%emt 0:00:02]} Ne4+ {[%emt 0:00:01]} 76. Kxg6 {[%emt 0:00:02]} h3 {[%emt 0:00:00]} 77. Ra2 {[%emt 0:00:01]} Ng3 {[%emt 0:00:02]} 78. Kg5 {[%emt 0:00:02]} Nf1 {[%emt 0:00:01]} 79. Rf2 {[%emt 0:00:03]} Ne3 {[%emt 0:00:02]} 80. Kf4 {[%emt 0:00:01]} Ng4 {[%emt 0:00:01]} 81. Rf1 {[%emt 0:00:03]} Kf7 {[%emt 0:00:02]} 82. Rh1 {[%emt 0:00:00]} Nf2 {[%emt 0:00:01]} 83. Rh2 {[%emt 0:00:01]} Ne4 {[%emt 0:00:02]} 84. Kxf5 {[%emt 0:00:01]} Nd6+ {[%emt 0:00:01]} 85. Kf4 {[%emt 0:00:02]} Nc4 {[%emt 0:00:00]} 86. Rxh3 Nd6 87. Rh6 {[%emt 0:00:02]} Ke7 {[%emt 0:00:02]} 88. Rh7+ {[%emt 0:00:02]} Ke6 {[%emt 0:00:01]} 89. Ra7 {[%emt 0:00:01]} Kd5 {[%emt 0:00:01]} 90. Ke3 {[%emt 0:00:01]} Ke5 {[%emt 0:00:01]} 91. Ra5+ {[%emt 0:00:01]} Ke6 {[%emt 0:00:00]} 92. Kd4 {[%emt 0:00:02]} Nf5+ {[%emt 0:00:02]} 93. Kc4 {[%emt 0:00:02]} Nd6+ {[%emt 0:00:00]} 94. Kd3 {[%emt 0:00:03]} Nf5 {[%emt 0:00:03]} 95. Rb5 {[%emt 0:00:02]} Nd6 {[%emt 0:00:01]} 96. Rb2 {[%emt 0:00:03]} Kd5 {[%emt 0:00:00]} 97. Rd2 {[%emt 0:00:01]} Ke5 {[%emt 0:00:01]} 98. Ke3 Nc4+ 99. Kd3 Nxd2 1/2-1/2

[Event "47th GER-ch Blitz 2020"]
[Site "Magdeburg"]
[Date "2020.08.15"]
[Round "9.15"]
[White "Siebarth, Raiko"]
[Black "Hess, Max"]
[Result "0-1"]
[ECO "B23"]
[WhiteElo "2333"]
[BlackElo "2378"]
[Annotator "RC"]
[PlyCount "42"]
[EventDate "2020.07.28"]
[EventType "tourn"]
[EventCountry "GER"]
[SourceTitle "playchess.com"]
[Source "ChessBase"]
[SourceQuality "1"]
[TimeControl "180+2"]

1. e4 {[%emt 0:00:00]} c5 {[%emt 0:00:00]} 2. Nc3 {[%emt 0:00:01]} a6 {[%emt 0:00:00]} 3. Nge2 {[%emt 0:00:02]} Nc6 {[%emt 0:00:09]} 4. g3 {[%emt 0:00:01]} b5 {[%emt 0:00:03]} 5. d4 {[%emt 0:00:01]} cxd4 {[%emt 0:00:06]} 6. Nxd4 {[%emt 0:00:01]} Bb7 {[%emt 0:00:03]} 7. Bg2 {[%emt 0:00:02]} e6 {[%emt 0:00:04]} 8. O-O {[%emt 0:00:04]} Qc7 {[%emt 0:00:21]} 9. a3 {[%emt 0:00:04]} Nf6 {[%emt 0:00:02]} 10. Be3 {[%emt 0:00:03]} Be7 {[%emt 0:00:05]} 11. Qe2 {[%emt 0:00:14]} Ne5 {[%emt 0:00:11]} 12. Bf4 {[%emt 0:00:04]} d6 {[%emt 0:00:03]} 13. Rfe1 {[%emt 0:00:31]} O-O {[%emt 0:00:09]} 14. Rad1 {[%emt 0:00:04]} Nc4 {[%emt 0:00:03]} 15. e5 {[%emt 0:00:12]} dxe5 {[%emt 0:00:06]} 16. Bxe5 {[%emt 0:00:03]} Nxe5 {[%emt 0:00:03]} 17. Qxe5 {[%emt 0:00:01]} Qxe5 {[%emt 0:00:04]} 18. Rxe5 {[%emt 0:00:01]} Bxg2 {[%emt 0:00:02]} 19. Kxg2 {[%emt 0:00:01]} Rac8 {[%emt 0:00:11]} 20. Rd3 {[%emt 0:00:03]} Rfd8 {[%emt 0:00:07]} 21. Nc6 {[%emt 0:00:06]} Rxc6 {[%emt 0:00:05]} 0-1

[Event "47th GER-ch Blitz 2020"]
[Site "Magdeburg"]
[Date "2020.08.15"]
[Round "12.2"]
[White "Berger, Steve"]
[Black "Hess, Max"]
[Result "1-0"]
[ECO "B06"]
[WhiteElo "2408"]
[BlackElo "2378"]
[Annotator "ChessBase"]
[PlyCount "123"]
[EventDate "2020.07.28"]
[EventType "tourn"]
[EventCountry "GER"]
[SourceTitle "playchess.com"]
[Source "ChessBase"]
[SourceQuality "1"]
[TimeControl "180+2"]

1. e4 {[%emt 0:00:00]} g6 {[%emt 0:00:00]} 2. d4 {[%emt 0:00:00]} c6 {[%emt 0:00:00]} 3. c4 {[%emt 0:00:04]} Bg7 {[%emt 0:00:03]} 4. Nc3 {[%emt 0:00:02]} d6 {[%emt 0:00:01]} 5. Nf3 {[%emt 0:00:04]} Nf6 {[%emt 0:00:02]} 6. Be2 {[%emt 0:00:06]} O-O {[%emt 0:00:02]} 7. O-O {[%emt 0:00:03]} Nbd7 {[%emt 0:00:07]} 8. Be3 {[%emt 0:00:26]} e5 {[%emt 0:00:06]} 9. d5 {[%emt 0:00:09]} c5 {[%emt 0:00:02]} 10. Nd2 {[%emt 0:00:10]} Kh8 {[%emt 0:00:03]} 11. a3 {[%emt 0:00:03]} Ng8 {[%emt 0:00:02]} 12. b4 {[%emt 0:00:04]} b6 {[%emt 0:00:01]} 13. Rb1 {[%emt 0:00:06]} f5 {[%emt 0:00:06]} 14. f3 {[%emt 0:00:02]} Bh6 {[%emt 0:00:05]} 15. Bxh6 {[%emt 0:00:12]} Nxh6 {[%emt 0:00:02]} 16. Qa4 {[%emt 0:00:04]} Qg5 {[%emt 0:00:23]} 17. f4 {[%emt 0:00:19]} exf4 {[%emt 0:00:07]} 18. Qc6 {[%emt 0:00:04]} Rb8 {[%emt 0:00:18]} 19. Qxd6 {[%emt 0:00:15]} f3 {[%emt 0:00:04]} 20. Nxf3 {[%emt 0:00:01]} Qe3+ {[%emt 0:00:01]} 21. Kh1 {[%emt 0:00:01]} Qxc3 {[%emt 0:00:02]} 22. bxc5 {[%emt 0:00:07]} Nf7 {[%emt 0:00:03]} 23. Qe7 {[%emt 0:00:08]} Qf6 {[%emt 0:00:12]} 24. Qxf6+ {[%emt 0:00:01]} Nxf6 25. e5 Ng4 {[%emt 0:00:29]} 26. e6 {[%emt 0:00:02]} Nfe5 {[%emt 0:00:01]} 27. Nxe5 {[%emt 0:00:13]} Nxe5 {[%emt 0:00:01]} 28. Rfe1 {[%emt 0:00:07]} Ba6 {[%emt 0:00:03]} 29. c6 {[%emt 0:00:05]} Bxc4 {[%emt 0:00:09]} 30. e7 {[%emt 0:00:21]} Rfe8 {[%emt 0:00:18]} 31. d6 {[%emt 0:00:20]} Bxe2 {[%emt 0:00:14]} 32. d7 {[%emt 0:00:01]} Rxe7 {[%emt 0:00:07]} 33. c7 {[%emt 0:00:01]} Nxd7 {[%emt 0:00:01]} 34. cxb8=Q+ {[%emt 0:00:15]} Nxb8 35. Rb2 Kg7 {[%emt 0:00:14]} 36. Rbxe2 {[%emt 0:00:02]} Rxe2 {[%emt 0:00:02]} 37. Rxe2 {[%emt 0:00:01]} Kf6 {[%emt 0:00:03]} 38. Kg1 {[%emt 0:00:00]} Nc6 {[%emt 0:00:01]} 39. Kf2 {[%emt 0:00:01]} b5 {[%emt 0:00:07]} 40. Rc2 {[%emt 0:00:03]} Nd4 {[%emt 0:00:07]} 41. Rc7 {[%emt 0:00:01]} a5 {[%emt 0:00:00]} 42. Rxh7 {[%emt 0:00:01]} b4 {[%emt 0:00:03]} 43. axb4 {[%emt 0:00:03]} axb4 44. Rb7 {[%emt 0:00:01]} b3 {[%emt 0:00:05]} 45. Ke3 {[%emt 0:00:00]} Ke5 {[%emt 0:00:03]} 46. g3 {[%emt 0:00:03]} g5 {[%emt 0:00:01]} 47. Kd3 {[%emt 0:00:02]} g4 {[%emt 0:00:06]} 48. Rb4 {[%emt 0:00:04]} Nf3 {[%emt 0:00:03]} 49. Rb5+ {[%emt 0:00:05]} Kf6 {[%emt 0:00:01]} 50. Rxb3 Nxh2 {[%emt 0:00:03]} 51. Ke3 {[%emt 0:00:03]} Kg5 {[%emt 0:00:10]} 52. Rb8 {[%emt 0:00:02]} Nf1+ {[%emt 0:00:03]} 53. Kf2 {[%emt 0:00:01]} Nd2 {[%emt 0:00:02]} 54. Rg8+ {[%emt 0:00:01]} Kf6 {[%emt 0:00:00]} 55. Ke3 {[%emt 0:00:00]} Ne4 {[%emt 0:00:11]} 56. Kf4 {[%emt 0:00:01]} Nd6 {[%emt 0:00:02]} 57. Ra8 {[%emt 0:00:05]} Ke6 {[%emt 0:00:01]} 58. Ra6 {[%emt 0:00:01]} Kd5 59. Rxd6+ {[%emt 0:00:01]} Kxd6 60. Kxf5 {[%emt 0:00:00]} Ke7 {[%emt 0:00:08]} 61. Kxg4 Kf6 {[%emt 0:00:00]} 62. Kh5 {[%emt 0:00:02]} 1-0

[Event "47th GER-ch Blitz 2020"]
[Site "Magdeburg"]
[Date "2020.08.15"]
[Round "12.3"]
[White "Schoewel, Matthias"]
[Black "Siebarth, Raiko"]
[Result "1/2-1/2"]
[ECO "B50"]
[WhiteElo "2218"]
[BlackElo "2333"]
[Annotator "RC"]
[PlyCount "145"]
[EventDate "2020.07.28"]
[EventType "tourn"]
[EventCountry "GER"]
[SourceTitle "playchess.com"]
[Source "ChessBase"]
[SourceQuality "1"]
[TimeControl "180+2"]

1. e4 {[%emt 0:00:00]} c5 {[%emt 0:00:00]} 2. Nf3 {[%emt 0:00:00]} d6 {[%emt 0:00:00]} 3. Nc3 {[%emt 0:00:01]} Nf6 {[%emt 0:00:01]} 4. d3 {[%emt 0:00:01]} Nc6 {[%emt 0:00:02]} 5. Be2 {[%emt 0:00:02]} g6 {[%emt 0:00:03]} 6. Bg5 {[%emt 0:00:01]} Bg7 {[%emt 0:00:01]} 7. Qd2 {[%emt 0:00:01]} h6 {[%emt 0:00:01]} 8. Be3 {[%emt 0:00:01]} Rb8 {[%emt 0:00:09]} 9. a4 {[%emt 0:00:01]} a6 {[%emt 0:00:09]} 10. h3 {[%emt 0:00:11]} b5 {[%emt 0:00:14]} 11. axb5 {[%emt 0:00:05]} axb5 {[%emt 0:00:01]} 12. O-O {[%emt 0:00:06]} g5 {[%emt 0:00:14]} 13. Nh2 {[%emt 0:00:04]} b4 {[%emt 0:00:20]} 14. Nd5 {[%emt 0:00:07]} Nxd5 {[%emt 0:00:05]} 15. exd5 {[%emt 0:00:01]} Nd4 {[%emt 0:00:01]} 16. Bxd4 {[%emt 0:00:17]} Bxd4 {[%emt 0:00:06]} 17. c3 {[%emt 0:00:01]} Be5 {[%emt 0:00:05]} 18. Rfe1 {[%emt 0:00:39]} Kf8 {[%emt 0:00:25]} 19. Bh5 {[%emt 0:00:11]} Bf5 {[%emt 0:00:11]} 20. Nf3 {[%emt 0:00:11]} Bf6 {[%emt 0:00:07]} 21. d4 {[%emt 0:00:07]} bxc3 {[%emt 0:00:01]} 22. bxc3 {[%emt 0:00:01]} c4 {[%emt 0:00:00]} 23. Nh2 {[%emt 0:00:10]} Kg7 {[%emt 0:00:16]} 24. Bg4 {[%emt 0:00:01]} Bg6 {[%emt 0:00:04]} 25. Bf3 {[%emt 0:00:06]} Ra8 {[%emt 0:00:11]} 26. Ng4 {[%emt 0:00:09]} Qd7 {[%emt 0:00:12]} 27. Nxf6 {[%emt 0:00:02]} exf6 {[%emt 0:00:00]} 28. Rxa8 {[%emt 0:00:10]} Rxa8 {[%emt 0:00:01]} 29. Qe3 {[%emt 0:00:01]} Ra3 {[%emt 0:00:09]} 30. Qc1 {[%emt 0:00:13]} Qa4 {[%emt 0:00:03]} 31. Qe3 {[%emt 0:00:08]} Qa5 {[%emt 0:00:04]} 32. Rc1 {[%emt 0:00:01]} Ra1 {[%emt 0:00:01]} 33. Rxa1 {[%emt 0:00:06]} Qxa1+ 34. Kh2 {[%emt 0:00:01]} Qb2 {[%emt 0:00:01]} 35. g3 {[%emt 0:00:09]} Bd3 {[%emt 0:00:06]} 36. Qe1 {[%emt 0:00:07]} Qc2 {[%emt 0:00:01]} 37. Kg2 {[%emt 0:00:03]} f5 {[%emt 0:00:01]} 38. Bh5 {[%emt 0:00:09]} Be4+ {[%emt 0:00:01]} 39. Bf3 {[%emt 0:00:02]} Bxf3+ {[%emt 0:00:15]} 40. Kxf3 {[%emt 0:00:01]} Qd3+ {[%emt 0:00:01]} 41. Kg2 {[%emt 0:00:01]} Kf6 {[%emt 0:00:02]} 42. Qc1 {[%emt 0:00:03]} Qe4+ {[%emt 0:00:02]} 43. Kg1 {[%emt 0:00:01]} Qxd5 {[%emt 0:00:00]} 44. h4 {[%emt 0:00:01]} Qf3 {[%emt 0:00:03]} 45. hxg5+ hxg5 46. Qb2 {[%emt 0:00:06]} f4 {[%emt 0:00:04]} 47. Qb4 {[%emt 0:00:05]} Qd1+ {[%emt 0:00:01]} 48. Kh2 {[%emt 0:00:02]} fxg3+ {[%emt 0:00:04]} 49. Kxg3 {[%emt 0:00:05]} Qg1+ {[%emt 0:00:04]} 50. Kf3 {[%emt 0:00:01]} Qh1+ {[%emt 0:00:04]} 51. Kg3 {[%emt 0:00:03]} Qh4+ {[%emt 0:00:01]} 52. Kg2 {[%emt 0:00:01]} Qg4+ {[%emt 0:00:01]} 53. Kf1 {[%emt 0:00:01]} Qe6 {[%emt 0:00:06]} 54. Qb8 {[%emt 0:00:05]} d5 {[%emt 0:00:01]} 55. Qd8+ {[%emt 0:00:02]} Kg6 {[%emt 0:00:01]} 56. Qg8+ {[%emt 0:00:02]} Kf5 {[%emt 0:00:01]} 57. Qh7+ {[%emt 0:00:01]} Qg6 {[%emt 0:00:03]} 58. Qh3+ {[%emt 0:00:02]} Kf6 {[%emt 0:00:00]} 59. Qf3+ {[%emt 0:00:01]} Qf5 {[%emt 0:00:02]} 60. Qe3 {[%emt 0:00:07]} Qd3+ {[%emt 0:00:00]} 61. Qxd3 {[%emt 0:00:02]} cxd3 {[%emt 0:00:01]} 62. Ke1 {[%emt 0:00:01]} Kf5 {[%emt 0:00:01]} 63. Kd2 {[%emt 0:00:00]} Ke4 {[%emt 0:00:00]} 64. Kd1 {[%emt 0:00:15]} Kf3 {[%emt 0:00:01]} 65. Ke1 {[%emt 0:00:00]} d2+ {[%emt 0:00:01]} 66. Kxd2 Kxf2 {[%emt 0:00:01]} 67. c4 {[%emt 0:00:02]} dxc4 {[%emt 0:00:01]} 68. d5 {[%emt 0:00:00]} g4 {[%emt 0:00:01]} 69. d6 {[%emt 0:00:01]} g3 {[%emt 0:00:00]} 70. d7 {[%emt 0:00:01]} c3+ {[%emt 0:00:03]} 71. Kxc3 {[%emt 0:00:03]} g2 {[%emt 0:00:00]} 72. d8=Q {[%emt 0:00:01]} g1=Q {[%emt 0:00:04]} 73. Qf6+ 1/2-1/2

[Event "47th GER-ch Blitz 2020"]
[Site "Magdeburg"]
[Date "2020.08.15"]
[Round "12.4"]
[White "Stein, Robert"]
[Black "Schneider, Ilja"]
[Result "0-1"]
[ECO "D12"]
[WhiteElo "2325"]
[BlackElo "2479"]
[Annotator "ChessBase"]
[PlyCount "110"]
[EventDate "2020.07.28"]
[EventType "tourn"]
[EventCountry "GER"]
[SourceTitle "playchess.com"]
[Source "ChessBase"]
[SourceQuality "1"]
[TimeControl "180+2"]

1. d4 {[%emt 0:00:00]} d5 {[%emt 0:00:00]} 2. c4 {[%emt 0:00:01]} c6 {[%emt 0:00:00]} 3. Nf3 {[%emt 0:00:02]} Nf6 {[%emt 0:00:00]} 4. e3 {[%emt 0:00:01]} Bf5 {[%emt 0:00:01]} 5. Nc3 {[%emt 0:00:03]} e6 {[%emt 0:00:01]} 6. Nh4 {[%emt 0:00:01]} Be4 {[%emt 0:00:01]} 7. f3 {[%emt 0:00:08]} Bg6 {[%emt 0:00:01]} 8. g3 {[%emt 0:00:04]} Be7 {[%emt 0:00:02]} 9. Be2 {[%emt 0:00:03]} Nbd7 {[%emt 0:00:05]} 10. O-O {[%emt 0:00:07]} O-O {[%emt 0:00:12]} 11. Nxg6 {[%emt 0:00:14]} hxg6 {[%emt 0:00:02]} 12. cxd5 {[%emt 0:00:09]} cxd5 {[%emt 0:00:20]} 13. Bd3 {[%emt 0:00:10]} e5 {[%emt 0:00:07]} 14. Qb3 {[%emt 0:00:21]} exd4 {[%emt 0:01:07]} 15. exd4 {[%emt 0:00:08]} Qb6 {[%emt 0:00:04]} 16. Qxb6 {[%emt 0:00:11]} Nxb6 {[%emt 0:00:04]} 17. Be3 {[%emt 0:00:02]} Rac8 {[%emt 0:00:08]} 18. Rac1 {[%emt 0:00:01]} Rfe8 {[%emt 0:00:09]} 19. Kf2 {[%emt 0:00:10]} a6 {[%emt 0:00:04]} 20. Rc2 {[%emt 0:00:02]} Nc4 {[%emt 0:00:31]} 21. Nxd5 {[%emt 0:00:31]} Nxd5 {[%emt 0:00:01]} 22. Rxc4 {[%emt 0:00:05]} Rcd8 {[%emt 0:00:14]} 23. Be4 {[%emt 0:00:30]} b5 {[%emt 0:00:06]} 24. Bxd5 {[%emt 0:00:24]} bxc4 {[%emt 0:00:02]} 25. Bxc4 {[%emt 0:00:01]} Bf6 {[%emt 0:00:01]} 26. Rd1 {[%emt 0:00:01]} a5 {[%emt 0:00:02]} 27. Rd2 {[%emt 0:00:01]} a4 {[%emt 0:00:14]} 28. Bb5 {[%emt 0:00:03]} Re6 {[%emt 0:00:07]} 29. d5 {[%emt 0:00:10]} Re5 {[%emt 0:00:04]} 30. Bc6 {[%emt 0:00:02]} Rh5 {[%emt 0:00:03]} 31. h4 {[%emt 0:00:01]} g5 {[%emt 0:00:01]} 32. Bxg5 {[%emt 0:00:08]} Bxg5 {[%emt 0:00:01]} 33. hxg5 {[%emt 0:00:00]} Rxg5 34. f4 {[%emt 0:00:01]} Rh5 {[%emt 0:00:03]} 35. Kf3 {[%emt 0:00:01]} Kf8 {[%emt 0:00:01]} 36. Bxa4 {[%emt 0:00:03]} Rhxd5 {[%emt 0:00:01]} 37. Rxd5 {[%emt 0:00:06]} Rxd5 {[%emt 0:00:01]} 38. Bc6 {[%emt 0:00:02]} Rd2 {[%emt 0:00:02]} 39. a4 {[%emt 0:00:03]} Rxb2 {[%emt 0:00:01]} 40. Bb5 {[%emt 0:00:03]} Ke7 {[%emt 0:00:01]} 41. g4 {[%emt 0:00:01]} Rb4 {[%emt 0:00:03]} 42. Ke3 {[%emt 0:00:01]} Kd6 {[%emt 0:00:00]} 43. Kf3 {[%emt 0:00:02]} Kd5 {[%emt 0:00:05]} 44. g5 {[%emt 0:00:02]} Kd4 {[%emt 0:00:11]} 45. Be8 {[%emt 0:00:05]} f6 {[%emt 0:00:03]} 46. gxf6 {[%emt 0:00:02]} gxf6 {[%emt 0:00:01]} 47. Bb5 {[%emt 0:00:01]} f5 {[%emt 0:00:02]} 48. Bd7 {[%emt 0:00:01]} Rb3+ {[%emt 0:00:01]} 49. Kf2 {[%emt 0:00:03]} Ke4 {[%emt 0:00:00]} 50. Be6 {[%emt 0:00:01]} Ra3 {[%emt 0:00:02]} 51. Bd7 {[%emt 0:00:02]} Kxf4 {[%emt 0:00:01]} 52. Bc6 {[%emt 0:00:00]} Ra2+ {[%emt 0:00:01]} 53. Ke1 {[%emt 0:00:02]} Ke3 {[%emt 0:00:01]} 54. Kd1 {[%emt 0:00:00]} f4 {[%emt 0:00:01]} 55. Kc1 {[%emt 0:00:01]} f3 {[%emt 0:00:01]} 0-1